[Event "Titled Tuesday Blitz February 28 Late 2023"]
[White "Clawitter, Craig"]
[Black "Bongo Akanga Ndjila, Barthelemy"]
[WhiteFideId "2023105"]
[BlackFideId "10609431"]
[WhiteElo "2271"]
[BlackElo "1768"]
[Result "1-0"]
[Round "09"]
[TimeControl "180+2"]
[Date "2023.02.28"]
[WhiteClock "0:00:31"]
[BlackClock "0:00:04"]

1. e4 {[%clk 0:03:00]}  e6 {[%clk 0:02:57]} 2. d4 {[%clk 0:03:00]}  d5 {[%clk 0:02:58]} 3. e5 {[%clk 0:03:01]}  c5 {[%clk 0:02:57]} 4. c3 {[%clk 0:03:01]}  Nc6 {[%clk 0:02:56]} 5. Nf3 {[%clk 0:03:02]}  Qb6 {[%clk 0:02:53]} 6. a3 {[%clk 0:03:02]}  Nh6 {[%clk 0:02:37]} 7. b4 {[%clk 0:03:00]}  cxd4 {[%clk 0:02:37]} 8. cxd4 {[%clk 0:03:01]}  a6 {[%clk 0:02:36]} 9. Be3 {[%clk 0:02:51]}  Nf5 {[%clk 0:02:30]} 10. Bd3 {[%clk 0:02:52]}  Bd7 {[%clk 0:02:25]} 11. O-O {[%clk 0:02:47]}  h5 {[%clk 0:02:01]} 12. Nc3 {[%clk 0:02:41]}  Ncxd4 {[%clk 0:01:47]} 13. Nxd4 {[%clk 0:02:36]}  Nxd4 {[%clk 0:01:42]} 14. Bc2 {[%clk 0:01:57]}  Nf3+ {[%clk 0:00:22]} 15. Qxf3 {[%clk 0:01:45]}  d4 {[%clk 0:00:21]} 16. Na4 {[%clk 0:01:46]}  Qa7 {[%clk 0:00:10]} 17. Bf4 {[%clk 0:01:35]}  Rc8 {[%clk 0:00:07]} 18. Qe2 {[%clk 0:01:03]}  b5 {[%clk 0:00:04]} 19. Nb2 {[%clk 0:00:58]}  Rc3 {[%clk 0:00:04]} 20. Be4 {[%clk 0:00:49]}  Be7 {[%clk 0:00:04]} 21. Rfc1 {[%clk 0:00:43]}  h4 {[%clk 0:00:03]} 22. Rxc3 {[%clk 0:00:37]}  dxc3 {[%clk 0:00:04]} 23. Nd1 {[%clk 0:00:31]} 1-0


[Site "https://www.chess.com"]

[Event "Titled Tuesday Blitz February 28 Late 2023"]
[White "Lucassen, Mickey"]
[Black "Mendez Machado, Andre"]
[WhiteFideId "12919110"]
[BlackFideId "6603793"]
[WhiteElo "2350"]
[BlackElo "1989"]
[Result "1-0"]
[Round "09"]
[TimeControl "180+2"]
[Date "2023.02.28"]
[WhiteClock "0:00:19"]
[BlackClock "0:00:01"]

1. Nf3 {[%clk 0:03:00]}  Nf6 {[%clk 0:02:53]} 2. b3 {[%clk 0:03:00]}  e6 {[%clk 0:02:53]} 3. Bb2 {[%clk 0:03:00]}  Be7 {[%clk 0:02:54]} 4. g3 {[%clk 0:03:00]}  O-O {[%clk 0:02:54]} 5. Bg2 {[%clk 0:03:01]}  d5 {[%clk 0:02:55]} 6. O-O {[%clk 0:03:01]}  c5 {[%clk 0:02:55]} 7. c4 {[%clk 0:03:01]}  d4 {[%clk 0:02:55]} 8. e3 {[%clk 0:03:01]}  Nc6 {[%clk 0:02:56]} 9. exd4 {[%clk 0:03:01]}  cxd4 {[%clk 0:02:57]} 10. d3 {[%clk 0:03:01]}  Re8 {[%clk 0:02:56]} 11. Re1 {[%clk 0:03:01]}  Bf8 {[%clk 0:02:49]} 12. a3 {[%clk 0:03:02]}  a5 {[%clk 0:02:46]} 13. Nbd2 {[%clk 0:03:01]}  e5 {[%clk 0:02:45]} 14. Qc2 {[%clk 0:03:00]}  Bf5 {[%clk 0:02:42]} 15. Nh4 {[%clk 0:02:59]}  Bg6 {[%clk 0:02:24]} 16. Nxg6 {[%clk 0:02:59]}  hxg6 {[%clk 0:02:25]} 17. Ne4 {[%clk 0:02:53]}  Nxe4 {[%clk 0:02:23]} 18. Bxe4 {[%clk 0:02:54]}  f5 {[%clk 0:02:23]} 19. Bd5+ {[%clk 0:02:54]}  Kh7 {[%clk 0:02:13]} 20. Kg2 {[%clk 0:02:49]}  Rb8 {[%clk 0:02:04]} 21. Bf3 {[%clk 0:02:05]}  Qf6 {[%clk 0:01:52]} 22. Bc1 {[%clk 0:02:02]}  Nd8 {[%clk 0:01:27]} 23. h4 {[%clk 0:01:53]}  Ne6 {[%clk 0:01:18]} 24. Bd2 {[%clk 0:01:53]}  b6 {[%clk 0:01:03]} 25. b4 {[%clk 0:01:52]}  axb4 {[%clk 0:00:51]} 26. axb4 {[%clk 0:01:51]}  Bd6 {[%clk 0:00:36]} 27. Ra7 {[%clk 0:01:47]}  Rbd8 {[%clk 0:00:27]} 28. Rea1 {[%clk 0:01:38]}  Bb8 {[%clk 0:00:24]} 29. Rb7 {[%clk 0:01:35]}  e4 {[%clk 0:00:20]} 30. dxe4 {[%clk 0:01:30]}  d3 {[%clk 0:00:20]} 31. Qc1 {[%clk 0:01:21]}  fxe4 {[%clk 0:00:11]} 32. Bxe4 {[%clk 0:01:16]}  Rf8 {[%clk 0:00:11]} 33. Be3 {[%clk 0:01:00]}  d2 {[%clk 0:00:12]} 34. Qd1 {[%clk 0:01:00]}  Be5 {[%clk 0:00:05]} 35. Ra2 {[%clk 0:00:57]}  Bc3 {[%clk 0:00:04]} 36. f4 {[%clk 0:00:45]}  Bxb4 {[%clk 0:00:04]} 37. Rb2 {[%clk 0:00:29]}  Qxb2 {[%clk 0:00:03]} 38. Qh5+ {[%clk 0:00:29]}  Kg8 {[%clk 0:00:03]} 39. Bxg6 {[%clk 0:00:20]}  d1=Q+ {[%clk 0:00:03]} 40. Kh3 {[%clk 0:00:19]}  Qxh5 {[%clk 0:00:02]} 41. Bxh5 {[%clk 0:00:19]}  Qb1 {[%clk 0:00:01]} 42. Bf3 {[%clk 0:00:19]} 1-0


[Site "https://www.chess.com"]

[Event "Titled Tuesday Blitz February 28 Late 2023"]
[White "Zampronha, Wladimir Camilo"]
[Black "Lopez Perdomo, Juan David"]
[WhiteFideId "2103087"]
[BlackFideId "4405137"]
[WhiteElo "2176"]
[BlackElo "1965"]
[Result "1-0"]
[Round "09"]
[TimeControl "180+2"]
[Date "2023.02.28"]
[WhiteClock "0:00:31"]
[BlackClock "0:00:05"]

1. e4 {[%clk 0:03:00]}  e6 {[%clk 0:02:53]} 2. d4 {[%clk 0:03:00]}  d5 {[%clk 0:02:52]} 3. Nc3 {[%clk 0:03:01]}  Bb4 {[%clk 0:02:52]} 4. e5 {[%clk 0:03:01]}  c5 {[%clk 0:02:52]} 5. a3 {[%clk 0:03:01]}  Ba5 {[%clk 0:02:52]} 6. Bd2 {[%clk 0:02:59]}  Ne7 {[%clk 0:02:49]} 7. dxc5 {[%clk 0:02:54]}  Bxc3 {[%clk 0:02:30]} 8. Bxc3 {[%clk 0:02:55]}  Nbc6 {[%clk 0:02:10]} 9. Nf3 {[%clk 0:02:54]}  Ng6 {[%clk 0:01:47]} 10. b4 {[%clk 0:02:52]}  Qc7 {[%clk 0:01:26]} 11. Bb5 {[%clk 0:02:46]}  Bd7 {[%clk 0:01:22]} 12. Qe2 {[%clk 0:02:31]}  Nf4 {[%clk 0:01:14]} 13. Qf1 {[%clk 0:02:23]}  d4 {[%clk 0:01:02]} 14. Bd2 {[%clk 0:02:17]}  Nxe5 {[%clk 0:00:57]} 15. Bxf4 {[%clk 0:01:49]}  Nxf3+ {[%clk 0:00:51]} 16. gxf3 {[%clk 0:01:50]}  Qxf4 {[%clk 0:00:51]} 17. Bxd7+ {[%clk 0:01:50]}  Kxd7 {[%clk 0:00:51]} 18. Qd3 {[%clk 0:01:43]}  Rhd8 {[%clk 0:00:41]} 19. O-O {[%clk 0:01:39]}  Ke7 {[%clk 0:00:38]} 20. Rae1 {[%clk 0:01:37]}  Rd5 {[%clk 0:00:19]} 21. Re4 {[%clk 0:01:38]}  Rg5+ {[%clk 0:00:12]} 22. Kh1 {[%clk 0:01:37]}  Qf6 {[%clk 0:00:13]} 23. Rxd4 {[%clk 0:01:22]}  g6 {[%clk 0:00:04]} 24. Rg1 {[%clk 0:01:16]}  Rf5 {[%clk 0:00:04]} 25. Rg3 {[%clk 0:00:41]}  Kf8 {[%clk 0:00:05]} 26. Rd7 {[%clk 0:00:31]} 1-0


[Site "https://www.chess.com"]

[Event "Titled Tuesday Blitz February 28 Late 2023"]
[White "Desideri, Ricardo Maruchi"]
[Black "Awoki, Daniel Teidi"]
[WhiteFideId "2110440"]
[BlackFideId "2100827"]
[WhiteElo "1945"]
[BlackElo "2083"]
[Result "0-1"]
[Round "09"]
[TimeControl "180+2"]
[Date "2023.02.28"]
[WhiteClock "0:00:01"]
[BlackClock "0:00:05"]

1. e4 {[%clk 0:02:48]}  c5 {[%clk 0:02:59]} 2. Nf3 {[%clk 0:02:46]}  d6 {[%clk 0:02:59]} 3. d4 {[%clk 0:02:46]}  cxd4 {[%clk 0:03:00]} 4. Nxd4 {[%clk 0:02:46]}  Nf6 {[%clk 0:03:01]} 5. Nc3 {[%clk 0:02:45]}  a6 {[%clk 0:03:01]} 6. Rg1 {[%clk 0:02:42]}  e5 {[%clk 0:02:58]} 7. Nb3 {[%clk 0:02:41]}  Be6 {[%clk 0:02:58]} 8. g4 {[%clk 0:02:40]}  Be7 {[%clk 0:02:58]} 9. g5 {[%clk 0:02:39]}  Nfd7 {[%clk 0:02:58]} 10. Be3 {[%clk 0:02:38]}  b5 {[%clk 0:02:58]} 11. a3 {[%clk 0:02:37]}  Nc6 {[%clk 0:02:58]} 12. h4 {[%clk 0:02:26]}  Nb6 {[%clk 0:02:58]} 13. Nd5 {[%clk 0:02:08]}  Bxd5 {[%clk 0:02:47]} 14. exd5 {[%clk 0:02:06]}  Nb8 {[%clk 0:02:47]} 15. Qd2 {[%clk 0:02:02]}  N8d7 {[%clk 0:02:46]} 16. Na5 {[%clk 0:02:01]}  Qc7 {[%clk 0:02:42]} 17. Nc6 {[%clk 0:02:00]}  Rc8 {[%clk 0:02:37]} 18. Bh3 {[%clk 0:01:50]}  Nxd5 {[%clk 0:02:34]} 19. Nxe7 {[%clk 0:01:11]}  Nxe7 {[%clk 0:02:35]} 20. Rd1 {[%clk 0:01:09]}  d5 {[%clk 0:02:28]} 21. Bxd7+ {[%clk 0:01:03]}  Qxd7 {[%clk 0:02:26]} 22. c3 {[%clk 0:00:46]}  O-O {[%clk 0:02:23]} 23. h5 {[%clk 0:00:44]}  Rfd8 {[%clk 0:02:09]} 24. f4 {[%clk 0:00:38]}  d4 {[%clk 0:02:01]} 25. Bf2 {[%clk 0:00:33]}  Qh3 {[%clk 0:01:48]} 26. cxd4 {[%clk 0:00:29]}  exd4 {[%clk 0:01:44]} 27. g6 {[%clk 0:00:16]}  Nf5 {[%clk 0:01:29]} 28. gxf7+ {[%clk 0:00:14]}  Kxf7 {[%clk 0:01:28]} 29. Qd3 {[%clk 0:00:08]}  Qxh5 {[%clk 0:00:33]} 30. Rg5 {[%clk 0:00:04]}  Qh1+ {[%clk 0:00:07]} 31. Kd2 {[%clk 0:00:04]}  Qxd1+ {[%clk 0:00:06]} 32. Kxd1 {[%clk 0:00:04]}  g6 {[%clk 0:00:06]} 33. Rxf5+ {[%clk 0:00:03]}  gxf5 {[%clk 0:00:06]} 34. Qxf5+ {[%clk 0:00:03]}  Kg8 {[%clk 0:00:06]} 35. Qe6+ {[%clk 0:00:03]}  Kg7 {[%clk 0:00:06]} 36. Qe7+ {[%clk 0:00:02]}  Kg6 {[%clk 0:00:06]} 37. Qg5+ {[%clk 0:00:01]}  Kf7 {[%clk 0:00:06]} 38. Qf5+ {[%clk 0:00:01]}  Ke7 {[%clk 0:00:05]} 0-1


[Site "https://www.chess.com"]

[Event "Titled Tuesday Blitz February 28 Late 2023"]
[White "Davidson, Kevin"]
[Black "Sailer, Mike"]
[WhiteFideId "2056810"]
[BlackFideId "2012901"]
[WhiteElo "2151"]
[BlackElo "2109"]
[Result "0-1"]
[Round "09"]
[TimeControl "180+2"]
[Date "2023.02.28"]
[WhiteClock "0:00:24"]
[BlackClock "0:00:28"]

1. e4 {[%clk 0:03:00]}  d5 {[%clk 0:02:59]} 2. exd5 {[%clk 0:03:00]}  Qxd5 {[%clk 0:02:58]} 3. Nc3 {[%clk 0:03:01]}  Qd6 {[%clk 0:02:58]} 4. d4 {[%clk 0:03:00]}  Nf6 {[%clk 0:02:55]} 5. Nf3 {[%clk 0:03:00]}  c6 {[%clk 0:02:55]} 6. h3 {[%clk 0:02:58]}  Bf5 {[%clk 0:02:54]} 7. g4 {[%clk 0:02:54]}  Bg6 {[%clk 0:02:53]} 8. Ne5 {[%clk 0:02:48]}  e6 {[%clk 0:02:47]} 9. h4 {[%clk 0:02:44]}  Be4 {[%clk 0:02:43]} 10. Rh3 {[%clk 0:02:30]}  Nbd7 {[%clk 0:02:31]} 11. Nxd7 {[%clk 0:02:19]}  Qxd7 {[%clk 0:02:22]} 12. g5 {[%clk 0:02:19]}  Bf5 {[%clk 0:02:20]} 13. gxf6 {[%clk 0:02:17]}  Bxh3 {[%clk 0:02:16]} 14. Bxh3 {[%clk 0:02:10]}  gxf6 {[%clk 0:02:07]} 15. Ne4 {[%clk 0:01:49]}  Be7 {[%clk 0:01:57]} 16. c3 {[%clk 0:01:46]}  f5 {[%clk 0:01:48]} 17. Ng5 {[%clk 0:01:43]}  h6 {[%clk 0:01:39]} 18. Qh5 {[%clk 0:01:38]}  Bxg5 {[%clk 0:01:37]} 19. hxg5 {[%clk 0:01:29]}  O-O-O {[%clk 0:01:19]} 20. gxh6 {[%clk 0:01:28]}  Rdg8 {[%clk 0:01:13]} 21. Bg5 {[%clk 0:01:06]}  Qd5 {[%clk 0:01:09]} 22. O-O-O {[%clk 0:01:03]}  Qxa2 {[%clk 0:01:08]} 23. h7 {[%clk 0:01:00]}  Rg7 {[%clk 0:00:46]} 24. Bf6 {[%clk 0:00:45]}  Rgxh7 {[%clk 0:00:40]} 25. Qe2 {[%clk 0:00:43]}  Rxh3 {[%clk 0:00:38]} 26. Bxh8 {[%clk 0:00:43]}  Rxh8 {[%clk 0:00:38]} 27. Qe5 {[%clk 0:00:31]}  Rd8 {[%clk 0:00:33]} 28. Rg1 {[%clk 0:00:24]}  Qa1+ {[%clk 0:00:28]} 0-1


[Site "https://www.chess.com"]

[Event "Titled Tuesday Blitz February 28 Late 2023"]
[White "Gamage, Wanshini Vidusama"]
[Black "Gerbelli Neto, Eduardo"]
[WhiteFideId "9953752"]
[BlackFideId "2103281"]
[WhiteElo "2195"]
[BlackElo "2178"]
[Result "0-1"]
[Round "09"]
[TimeControl "180+2"]
[Date "2023.02.28"]
[WhiteClock "0:00:14"]
[BlackClock "0:00:10"]

1. e4 {[%clk 0:03:00]}  e5 {[%clk 0:02:54]} 2. Nf3 {[%clk 0:03:00]}  Nc6 {[%clk 0:02:54]} 3. Bb5 {[%clk 0:03:00]}  a6 {[%clk 0:02:53]} 4. Ba4 {[%clk 0:02:34]}  d6 {[%clk 0:02:54]} 5. O-O {[%clk 0:02:27]}  f5 {[%clk 0:02:55]} 6. d3 {[%clk 0:02:20]}  fxe4 {[%clk 0:02:56]} 7. dxe4 {[%clk 0:02:21]}  Nf6 {[%clk 0:02:47]} 8. Re1 {[%clk 0:02:12]}  Bg4 {[%clk 0:02:42]} 9. c3 {[%clk 0:02:09]}  Be7 {[%clk 0:02:42]} 10. h3 {[%clk 0:02:08]}  Bh5 {[%clk 0:02:41]} 11. Bg5 {[%clk 0:02:04]}  Bf7 {[%clk 0:02:19]} 12. Nbd2 {[%clk 0:01:53]}  O-O {[%clk 0:02:18]} 13. Bb3 {[%clk 0:01:52]}  h6 {[%clk 0:02:06]} 14. Be3 {[%clk 0:01:41]}  b5 {[%clk 0:01:56]} 15. Bxf7+ {[%clk 0:01:38]}  Rxf7 {[%clk 0:01:57]} 16. a4 {[%clk 0:01:38]}  Rb8 {[%clk 0:01:51]} 17. axb5 {[%clk 0:01:38]}  axb5 {[%clk 0:01:52]} 18. Ra6 {[%clk 0:01:34]}  Qd7 {[%clk 0:01:52]} 19. Qb3 {[%clk 0:01:28]}  b4 {[%clk 0:01:24]} 20. c4 {[%clk 0:01:27]}  Nh5 {[%clk 0:01:12]} 21. c5 {[%clk 0:01:25]}  Nf4 {[%clk 0:01:07]} 22. cxd6 {[%clk 0:01:21]}  cxd6 {[%clk 0:01:02]} 23. Qc4 {[%clk 0:01:07]}  Nd8 {[%clk 0:00:38]} 24. Bxf4 {[%clk 0:01:00]}  exf4 {[%clk 0:00:38]} 25. e5 {[%clk 0:00:59]}  d5 {[%clk 0:00:24]} 26. Qb3 {[%clk 0:00:51]}  Ne6 {[%clk 0:00:24]} 27. Qd3 {[%clk 0:00:32]}  Nc5 {[%clk 0:00:22]} 28. e6 {[%clk 0:00:29]}  Nxd3 {[%clk 0:00:21]} 29. exd7 {[%clk 0:00:26]}  Nxe1 {[%clk 0:00:21]} 30. Nxe1 {[%clk 0:00:27]}  Bd8 {[%clk 0:00:18]} 31. Nd3 {[%clk 0:00:23]}  Rxd7 {[%clk 0:00:17]} 32. Nxf4 {[%clk 0:00:22]}  Rc8 {[%clk 0:00:18]} 33. Nf3 {[%clk 0:00:20]}  Rc2 {[%clk 0:00:17]} 34. b3 {[%clk 0:00:17]}  Rb2 {[%clk 0:00:17]} 35. Nd4 {[%clk 0:00:18]}  Bf6 {[%clk 0:00:15]} 36. Nfe6 {[%clk 0:00:18]}  Re7 {[%clk 0:00:14]} 37. Ra8+ {[%clk 0:00:18]}  Kf7 {[%clk 0:00:12]} 38. Ra6 {[%clk 0:00:15]}  Bxd4 {[%clk 0:00:11]} 39. Nxd4 {[%clk 0:00:15]}  Re1+ {[%clk 0:00:12]} 40. Kh2 {[%clk 0:00:16]}  Rd1 {[%clk 0:00:12]} 41. Nf5 {[%clk 0:00:15]}  Rxb3 {[%clk 0:00:11]} 42. Rd6 {[%clk 0:00:14]}  Rbd3 {[%clk 0:00:10]} 43. Rd7+ {[%clk 0:00:14]}  Ke6 {[%clk 0:00:10]} 0-1


[Site "https://www.chess.com"]

[Event "Titled Tuesday Blitz February 28 Late 2023"]
[White "Einarsson, Halldor Gretar"]
[Black "Khatena, Moshe"]
[WhiteFideId "2300150"]
[BlackFideId "2010461"]
[WhiteElo "2126"]
[BlackElo "2144"]
[Result "0-1"]
[Round "09"]
[TimeControl "180+2"]
[Date "2023.02.28"]
[WhiteClock "0:00:04"]
[BlackClock "0:00:17"]

1. d4 {[%clk 0:03:00]}  b5 {[%clk 0:02:58]} 2. Nf3 {[%clk 0:02:56]}  Bb7 {[%clk 0:02:58]} 3. g3 {[%clk 0:02:55]}  g6 {[%clk 0:02:55]} 4. Bg2 {[%clk 0:02:55]}  Bg7 {[%clk 0:02:56]} 5. O-O {[%clk 0:02:54]}  Nf6 {[%clk 0:02:56]} 6. a4 {[%clk 0:02:51]}  b4 {[%clk 0:02:56]} 7. c4 {[%clk 0:02:47]}  c5 {[%clk 0:02:52]} 8. dxc5 {[%clk 0:02:24]}  Na6 {[%clk 0:02:50]} 9. Be3 {[%clk 0:02:02]}  Rc8 {[%clk 0:02:49]} 10. c6 {[%clk 0:01:50]}  Bxc6 {[%clk 0:02:37]} 11. Bxa7 {[%clk 0:01:46]}  Qa5 {[%clk 0:02:34]} 12. Nbd2 {[%clk 0:01:28]}  Nc5 {[%clk 0:02:26]} 13. Bxc5 {[%clk 0:01:26]}  Qxc5 {[%clk 0:02:27]} 14. Rc1 {[%clk 0:01:18]}  O-O {[%clk 0:02:13]} 15. b3 {[%clk 0:01:18]}  d5 {[%clk 0:01:56]} 16. Ne5 {[%clk 0:00:57]}  Bb7 {[%clk 0:01:23]} 17. cxd5 {[%clk 0:00:55]}  Qxc1 {[%clk 0:01:12]} 18. Qxc1 {[%clk 0:00:54]}  Rxc1 {[%clk 0:01:13]} 19. Rxc1 {[%clk 0:00:54]}  Nxd5 {[%clk 0:01:14]} 20. Nd7 {[%clk 0:00:45]}  Rd8 {[%clk 0:01:06]} 21. Nc5 {[%clk 0:00:40]}  Nc3 {[%clk 0:01:05]} 22. Nxb7 {[%clk 0:00:29]}  Rxd2 {[%clk 0:00:59]} 23. Bf3 {[%clk 0:00:25]}  e5 {[%clk 0:00:49]} 24. Nc5 {[%clk 0:00:16]}  f5 {[%clk 0:00:47]} 25. e3 {[%clk 0:00:13]}  e4 {[%clk 0:00:46]} 26. Nxe4 {[%clk 0:00:11]}  fxe4 {[%clk 0:00:45]} 27. Bg4 {[%clk 0:00:10]}  h5 {[%clk 0:00:42]} 28. Be6+ {[%clk 0:00:10]}  Kh7 {[%clk 0:00:43]} 29. Bc4 {[%clk 0:00:10]}  h4 {[%clk 0:00:36]} 30. Kg2 {[%clk 0:00:10]}  hxg3 {[%clk 0:00:35]} 31. hxg3 {[%clk 0:00:10]}  Bf6 {[%clk 0:00:27]} 32. a5 {[%clk 0:00:09]}  Ra2 {[%clk 0:00:25]} 33. a6 {[%clk 0:00:09]}  Kg7 {[%clk 0:00:25]} 34. Rh1 {[%clk 0:00:07]}  Be5 {[%clk 0:00:24]} 35. Rh4 {[%clk 0:00:07]}  Bf6 {[%clk 0:00:23]} 36. Rg4 {[%clk 0:00:07]}  g5 {[%clk 0:00:20]} 37. Kh3 {[%clk 0:00:05]}  Nd1 {[%clk 0:00:19]} 38. Kg2 {[%clk 0:00:04]}  Nxf2 {[%clk 0:00:17]} 0-1


[Site "https://www.chess.com"]

[Event "Titled Tuesday Blitz February 28 Late 2023"]
[White "Kujawski, Adam"]
[Black "Ricaurte Lopez, Juan Carlos"]
[WhiteFideId "1100920"]
[BlackFideId "3600327"]
[WhiteElo "2054"]
[BlackElo "2209"]
[Result "0-1"]
[Round "09"]
[TimeControl "180+2"]
[Date "2023.02.28"]
[WhiteClock "0:00:01"]
[BlackClock "0:01:41"]

1. e4 {[%clk 0:02:56]}  e5 {[%clk 0:02:57]} 2. Nf3 {[%clk 0:02:56]}  d5 {[%clk 0:02:55]} 3. Nxe5 {[%clk 0:02:55]}  Bd6 {[%clk 0:02:53]} 4. d4 {[%clk 0:02:54]}  dxe4 {[%clk 0:02:52]} 5. Nc4 {[%clk 0:02:54]}  Nf6 {[%clk 0:02:51]} 6. Be2 {[%clk 0:02:51]}  Nc6 {[%clk 0:02:48]} 7. O-O {[%clk 0:02:48]}  Nxd4 {[%clk 0:02:48]} 8. Bg5 {[%clk 0:02:35]}  O-O {[%clk 0:02:45]} 9. Nc3 {[%clk 0:02:26]}  Bf5 {[%clk 0:02:40]} 10. Nd5 {[%clk 0:02:13]}  Bxh2+ {[%clk 0:02:37]} 11. Kxh2 {[%clk 0:02:09]}  Qxd5 {[%clk 0:02:37]} 12. Bxf6 {[%clk 0:02:02]}  gxf6 {[%clk 0:02:35]} 13. c3 {[%clk 0:01:40]}  b5 {[%clk 0:02:34]} 14. Qxd4 {[%clk 0:01:27]}  Qxd4 {[%clk 0:02:33]} 15. cxd4 {[%clk 0:01:27]}  bxc4 {[%clk 0:02:33]} 16. Bxc4 {[%clk 0:01:25]}  Rfd8 {[%clk 0:02:32]} 17. d5 {[%clk 0:01:17]}  Rd6 {[%clk 0:02:27]} 18. Kg3 {[%clk 0:01:12]}  c6 {[%clk 0:02:21]} 19. dxc6 {[%clk 0:00:56]}  Be6 {[%clk 0:02:17]} 20. Bb5 {[%clk 0:00:40]}  Rb8 {[%clk 0:02:12]} 21. a4 {[%clk 0:00:28]}  a6 {[%clk 0:02:11]} 22. Bxa6 {[%clk 0:00:28]}  Rxc6 {[%clk 0:02:10]} 23. Bb5 {[%clk 0:00:24]}  Rc2 {[%clk 0:02:10]} 24. b4 {[%clk 0:00:17]}  f5 {[%clk 0:02:04]} 25. Rac1 {[%clk 0:00:16]}  Rb2 {[%clk 0:02:02]} 26. Rb1 {[%clk 0:00:16]}  Ra2 {[%clk 0:02:01]} 27. Kf4 {[%clk 0:00:15]}  Kg7 {[%clk 0:01:59]} 28. g4 {[%clk 0:00:14]}  fxg4 {[%clk 0:01:57]} 29. Kxe4 {[%clk 0:00:14]}  Kf6 {[%clk 0:01:54]} 30. Kd4 {[%clk 0:00:14]}  Rc8 {[%clk 0:01:50]} 31. Rfd1 {[%clk 0:00:06]}  Rxf2 {[%clk 0:01:49]} 32. a5 {[%clk 0:00:06]}  Rf4+ {[%clk 0:01:47]} 33. Ke3 {[%clk 0:00:05]}  Rf3+ {[%clk 0:01:43]} 34. Ke4 {[%clk 0:00:03]}  Bf5+ {[%clk 0:01:41]} 35. Kd5 {[%clk 0:00:01]}  Bxb1 {[%clk 0:01:41]} 36. Rxb1 {[%clk 0:00:01]}  Rf5+ {[%clk 0:01:41]} 0-1


[Site "https://www.chess.com"]

[Event "Titled Tuesday Blitz February 28 Late 2023"]
[White "Dias, Joao Batista"]
[Black "Burke, Paul"]
[WhiteFideId "2108240"]
[BlackFideId "2605767"]
[WhiteElo "1907"]
[BlackElo "1893"]
[Result "0-1"]
[Round "09"]
[TimeControl "180+2"]
[Date "2023.02.28"]
[WhiteClock "0:01:25"]
[BlackClock "0:00:21"]

1. e4 {[%clk 0:03:00]}  e5 {[%clk 0:02:59]} 2. Nf3 {[%clk 0:03:00]}  Nc6 {[%clk 0:02:59]} 3. d4 {[%clk 0:03:01]}  exd4 {[%clk 0:02:58]} 4. Nxd4 {[%clk 0:03:02]}  Be7 {[%clk 0:02:58]} 5. Nxc6 {[%clk 0:03:01]}  dxc6 {[%clk 0:02:58]} 6. Be2 {[%clk 0:03:02]}  Qxd1+ {[%clk 0:02:54]} 7. Bxd1 {[%clk 0:03:03]}  Nf6 {[%clk 0:02:53]} 8. f3 {[%clk 0:03:01]}  O-O {[%clk 0:02:52]} 9. O-O {[%clk 0:03:01]}  Be6 {[%clk 0:02:50]} 10. b3 {[%clk 0:03:00]}  Bc5+ {[%clk 0:02:44]} 11. Kh1 {[%clk 0:02:59]}  Bd4 {[%clk 0:02:44]} 12. c3 {[%clk 0:03:00]}  Bc5 {[%clk 0:02:36]} 13. Be2 {[%clk 0:02:51]}  a5 {[%clk 0:02:32]} 14. Nd2 {[%clk 0:02:40]}  b5 {[%clk 0:02:28]} 15. Bb2 {[%clk 0:02:33]}  Rfd8 {[%clk 0:02:25]} 16. Rad1 {[%clk 0:02:33]}  Be3 {[%clk 0:01:59]} 17. Nb1 {[%clk 0:02:30]}  Bc5 {[%clk 0:01:57]} 18. h4 {[%clk 0:02:26]}  Nh5 {[%clk 0:01:50]} 19. Kh2 {[%clk 0:02:23]}  Bd6+ {[%clk 0:01:47]} 20. Kg1 {[%clk 0:02:20]}  Bc5+ {[%clk 0:01:45]} 21. Kh2 {[%clk 0:02:18]}  Bd6+ {[%clk 0:01:45]} 22. Kh1 {[%clk 0:02:13]}  Ng3+ {[%clk 0:01:43]} 23. Kg1 {[%clk 0:02:14]}  Nxe2+ {[%clk 0:01:39]} 24. Kf2 {[%clk 0:02:13]}  Nf4 {[%clk 0:01:37]} 25. g3 {[%clk 0:02:11]}  Bc5+ {[%clk 0:01:31]} 26. Ke1 {[%clk 0:02:07]}  Nd3+ {[%clk 0:01:31]} 27. Rxd3 {[%clk 0:02:05]}  Rxd3 {[%clk 0:01:30]} 28. Ke2 {[%clk 0:02:06]}  Rad8 {[%clk 0:01:23]} 29. g4 {[%clk 0:02:01]}  Re3+ {[%clk 0:01:18]} 30. Kf2 {[%clk 0:01:59]}  Rxc3+ {[%clk 0:01:15]} 31. Kg3 {[%clk 0:01:58]}  Bd6+ {[%clk 0:01:12]} 32. Kh3 {[%clk 0:01:55]}  Rc2 {[%clk 0:01:09]} 33. e5 {[%clk 0:01:55]}  Bc5 {[%clk 0:01:04]} 34. Ba3 {[%clk 0:01:48]}  Bxa3 {[%clk 0:01:01]} 35. Nxa3 {[%clk 0:01:48]}  Rxa2 {[%clk 0:01:00]} 36. Nb1 {[%clk 0:01:46]}  Bxb3 {[%clk 0:00:55]} 37. g5 {[%clk 0:01:45]}  Be6+ {[%clk 0:00:54]} 38. Kg3 {[%clk 0:01:44]}  Re2 {[%clk 0:00:48]} 39. Kf4 {[%clk 0:01:41]}  Rd4+ {[%clk 0:00:46]} 40. Kg3 {[%clk 0:01:41]}  Rxe5 {[%clk 0:00:42]} 41. Nc3 {[%clk 0:01:41]}  Rc5 {[%clk 0:00:40]} 42. Ne4 {[%clk 0:01:41]}  Rxe4 {[%clk 0:00:39]} 43. fxe4 {[%clk 0:01:40]}  Rc3+ {[%clk 0:00:38]} 44. Kf4 {[%clk 0:01:40]}  a4 {[%clk 0:00:35]} 45. h5 {[%clk 0:01:40]}  a3 {[%clk 0:00:34]} 46. h6 {[%clk 0:01:40]}  a2 {[%clk 0:00:33]} 47. hxg7 {[%clk 0:01:38]}  Rb3 {[%clk 0:00:32]} 48. Rd1 {[%clk 0:01:37]}  Rb1 {[%clk 0:00:29]} 49. Rd8+ {[%clk 0:01:36]}  Kxg7 {[%clk 0:00:29]} 50. Ke5 {[%clk 0:01:36]}  a1=Q+ {[%clk 0:00:29]} 51. Kf4 {[%clk 0:01:34]}  Rf1+ {[%clk 0:00:27]} 52. Ke3 {[%clk 0:01:28]}  Qc3+ {[%clk 0:00:26]} 53. Ke2 {[%clk 0:01:28]}  Qf3+ {[%clk 0:00:25]} 54. Kd2 {[%clk 0:01:27]}  Rd1+ {[%clk 0:00:25]} 55. Kc2 {[%clk 0:01:27]}  Rxd8 {[%clk 0:00:24]} 56. Kb2 {[%clk 0:01:25]}  Rd2+ {[%clk 0:00:23]} 57. Kc1 {[%clk 0:01:25]}  Qc3+ {[%clk 0:00:21]} 0-1


[Site "https://www.chess.com"]